[Event "Live Chess"]
[Site "Chess.com"]
[Date "2010.12.14"]
[Round "-"]
[White "hipposcottimus"]
[Black "thelastemperor"]
[Result "0-1"]
[CurrentPosition "6r1/pp2bk2/3p4/8/6n1/4R3/P1P5/4R2K w - -"]
[Timezone "UTC"]
[ECO "C41"]
[ECOUrl "https://www.chess.com/openings/Philidor-Defense-3.Bc4-Be7-4.d4-exd4-5.Nxd4"]
[UTCDate "2010.12.14"]
[UTCTime "08:35:38"]
[WhiteElo "1671"]
[BlackElo "1612"]
[TimeControl "60"]
[Termination "thelastemperor won on time"]
[StartTime "08:35:38"]
[EndDate "2010.12.14"]
[EndTime "08:37:56"]
[Link "https://www.chess.com/game/live/77145629"]

1. e4 {[%clk 0:01:00]} 1... e5 {[%clk 0:01:00]} 2. Nf3 {[%clk 0:00:58.5]} 2... d6 {[%clk 0:00:59.7]} 3. Bc4 {[%clk 0:00:57.8]} 3... Be7 {[%clk 0:00:59.3]} 4. d4 {[%clk 0:00:57.4]} 4... exd4 {[%clk 0:00:56.8]} 5. Nxd4 {[%clk 0:00:57.1]} 5... c5 {[%clk 0:00:56.5]} 6. Nc3 {[%clk 0:00:56.8]} 6... cxd4 {[%clk 0:00:54.4]} 7. Qxd4 {[%clk 0:00:56.6]} 7... Nf6 {[%clk 0:00:53.9]} 8. Bg5 {[%clk 0:00:52.2]} 8... Nc6 {[%clk 0:00:53.1]} 9. Qe3 {[%clk 0:00:49.5]} 9... O-O {[%clk 0:00:51.4]} 10. Qg3 {[%clk 0:00:47.7]} 10... h6 {[%clk 0:00:50]} 11. Bxh6 {[%clk 0:00:46.1]} 11... Nh5 {[%clk 0:00:48]} 12. Qf3 {[%clk 0:00:39.3]} 12... Nf6 {[%clk 0:00:44.6]} 13. Qg3 {[%clk 0:00:37.8]} 13... Nh5 {[%clk 0:00:42.5]} 14. Qf3 {[%clk 0:00:37.1]} 14... Nf6 {[%clk 0:00:41.8]} 15. e5 {[%clk 0:00:36.3]} 15... Nxe5 {[%clk 0:00:40.3]} 16. Bxf7+ {[%clk 0:00:34.4]} 16... Rxf7 {[%clk 0:00:39.1]} 17. Qg3 {[%clk 0:00:33.6]} 17... Nh5 {[%clk 0:00:36.9]} 18. Qe3 {[%clk 0:00:25.5]} 18... Nf6 {[%clk 0:00:35.1]} 19. Bxg7 {[%clk 0:00:24.1]} 19... Rxg7 {[%clk 0:00:34.1]} 20. O-O {[%clk 0:00:23.7]} 20... Qe8 {[%clk 0:00:32]} 21. f4 {[%clk 0:00:23.2]} 21... Qg6 {[%clk 0:00:30.8]} 22. Rf2 {[%clk 0:00:20.3]} 22... Nc4 {[%clk 0:00:28.6]} 23. Qf3 {[%clk 0:00:18.6]} 23... Nxb2 {[%clk 0:00:27]} 24. f5 {[%clk 0:00:17.5]} 24... Qg5 {[%clk 0:00:24.1]} 25. Raf1 {[%clk 0:00:11.6]} 25... Nc4 {[%clk 0:00:22.7]} 26. Ne4 {[%clk 0:00:10.9]} 26... Ne5 {[%clk 0:00:21.4]} 27. Nxg5 {[%clk 0:00:09.7]} 27... Nxf3+ {[%clk 0:00:20.1]} 28. Nxf3 {[%clk 0:00:09.4]} 28... Bxf5 {[%clk 0:00:17.6]} 29. Nh4 {[%clk 0:00:09.1]} 29... Bg6 {[%clk 0:00:15.7]} 30. Nf5 {[%clk 0:00:08.3]} 30... Bxf5 {[%clk 0:00:14.5]} 31. Rxf5 {[%clk 0:00:08.1]} 31... Re8 {[%clk 0:00:13.3]} 32. R5f2 {[%clk 0:00:07.9]} 32... Kf7 {[%clk 0:00:12.5]} 33. g3 {[%clk 0:00:07.7]} 33... Rg6 {[%clk 0:00:11.8]} 34. Rf3 {[%clk 0:00:06.9]} 34... Reg8 {[%clk 0:00:11]} 35. h3 {[%clk 0:00:06.3]} 35... Rxg3+ {[%clk 0:00:08.6]} 36. Kh1 {[%clk 0:00:05.8]} 36... Rxh3+ {[%clk 0:00:06.8]} 37. Rxh3 {[%clk 0:00:04]} 37... Ke6 {[%clk 0:00:03.3]} 38. Re1+ {[%clk 0:00:01.4]} 38... Kf7 {[%clk 0:00:02.5]} 39. Rhe3 {[%clk 0:00:00.8]} 39... Ng4 {[%clk 0:00:01.2]} 0-1

[Event "Live Chess"]
[Site "Chess.com"]
[Date "2010.12.14"]
[Round "-"]
[White "thelastemperor"]
[Black "hipposcottimus"]
[Result "0-1"]
[CurrentPosition "5rk1/p1p3pp/2B5/4pP2/P7/2P2pPq/5P1P/3RR1Kb w - -"]
[Timezone "UTC"]
[ECO "C20"]
[ECOUrl "https://www.chess.com/openings/Kings-Pawn-Opening-Leonardis-Variation"]
[UTCDate "2010.12.14"]
[UTCTime "08:33:21"]
[WhiteElo "1601"]
[BlackElo "1680"]
[TimeControl "60"]
[Termination "hipposcottimus won on time"]
[StartTime "08:33:21"]
[EndDate "2010.12.14"]
[EndTime "08:35:14"]
[Link "https://www.chess.com/game/live/77145218"]

1. e4 {[%clk 0:01:00]} 1... e5 {[%clk 0:01:00]} 2. d3 {[%clk 0:00:59.7]} 2... Nc6 {[%clk 0:00:59.6]} 3. Be2 {[%clk 0:00:59.4]} 3... Nf6 {[%clk 0:00:58.8]} 4. Nf3 {[%clk 0:00:59.1]} 4... d5 {[%clk 0:00:58.1]} 5. O-O {[%clk 0:00:58.7]} 5... dxe4 {[%clk 0:00:57]} 6. dxe4 {[%clk 0:00:58.3]} 6... Be7 {[%clk 0:00:55.5]} 7. Bg5 {[%clk 0:00:56.2]} 7... O-O {[%clk 0:00:53.5]} 8. Bxf6 {[%clk 0:00:55.8]} 8... Bxf6 {[%clk 0:00:52.9]} 9. Nc3 {[%clk 0:00:54.8]} 9... Be7 {[%clk 0:00:48.9]} 10. Nd5 {[%clk 0:00:52.8]} 10... f5 {[%clk 0:00:47.1]} 11. Nxe7+ {[%clk 0:00:51.5]} 11... Qxe7 {[%clk 0:00:45.4]} 12. Bd3 {[%clk 0:00:50.5]} 12... f4 {[%clk 0:00:43.7]} 13. g3 {[%clk 0:00:48.4]} 13... Qf6 {[%clk 0:00:42.1]} 14. Nh4 {[%clk 0:00:42.8]} 14... Bh3 {[%clk 0:00:39.6]} 15. Re1 {[%clk 0:00:41.1]} 15... Qg5 {[%clk 0:00:37.7]} 16. Qe2 {[%clk 0:00:39.9]} 16... Bg4 {[%clk 0:00:35.4]} 17. Qd2 {[%clk 0:00:37]} 17... f3 {[%clk 0:00:34.3]} 18. Nf5 {[%clk 0:00:32.9]} 18... Qxd2 {[%clk 0:00:31.8]} 19. Rad1 {[%clk 0:00:24.3]} 19... Qg5 {[%clk 0:00:28.8]} 20. c3 {[%clk 0:00:19.5]} 20... Rxf5 {[%clk 0:00:27.8]} 21. exf5 {[%clk 0:00:17.4]} 21... Bh3 {[%clk 0:00:24.1]} 22. b4 {[%clk 0:00:14.9]} 22... Bg2 {[%clk 0:00:23.7]} 23. b5 {[%clk 0:00:12.6]} 23... Qh5 {[%clk 0:00:23.4]} 24. a4 {[%clk 0:00:10.6]} 24... Qh3 {[%clk 0:00:21.9]} 25. bxc6 {[%clk 0:00:08.3]} 25... bxc6 {[%clk 0:00:18.2]} 26. Be4 {[%clk 0:00:07.5]} 26... Rf8 {[%clk 0:00:17.6]} 27. Bxc6 {[%clk 0:00:05.4]} 27... Bh1 {[%clk 0:00:15.9]} 0-1

[Event "Live Chess"]
[Site "Chess.com"]
[Date "2010.12.14"]
[Round "-"]
[White "Habitoc"]
[Black "hipposcottimus"]
[Result "0-1"]
[CurrentPosition "r1b1k1nr/pppn1ppp/8/4p3/3B2P1/1PbP1P2/PqP1Q2P/1K1R1B2 w kq -"]
[Timezone "UTC"]
[ECO "C20"]
[ECOUrl "https://www.chess.com/openings/Kings-Pawn-Opening-1...e5"]
[UTCDate "2010.12.14"]
[UTCTime "08:31:24"]
[WhiteElo "1723"]
[BlackElo "1673"]
[TimeControl "60"]
[Termination "hipposcottimus won by checkmate"]
[StartTime "08:31:24"]
[EndDate "2010.12.14"]
[EndTime "08:32:51"]
[Link "https://www.chess.com/game/live/77144868"]

1. e4 {[%clk 0:01:00]} 1... e5 {[%clk 0:01:00]} 2. g4 {[%clk 0:00:57.4]} 2... d5 {[%clk 0:00:58.4]} 3. exd5 {[%clk 0:00:54.5]} 3... Qxd5 {[%clk 0:00:53.5]} 4. Nc3 {[%clk 0:00:54.1]} 4... Qxh1 {[%clk 0:00:51.3]} 5. f3 {[%clk 0:00:52.4]} 5... Qxg1 {[%clk 0:00:49.5]} 6. Qe2 {[%clk 0:00:52]} 6... Qb6 {[%clk 0:00:46.9]} 7. d3 {[%clk 0:00:48.8]} 7... Bc5 {[%clk 0:00:46.4]} 8. b3 {[%clk 0:00:48]} 8... Bb4 {[%clk 0:00:45.5]} 9. Bd2 {[%clk 0:00:46.7]} 9... Qc6 {[%clk 0:00:45.1]} 10. O-O-O {[%clk 0:00:42.5]} 10... Bxc3 {[%clk 0:00:44.1]} 11. Be3 {[%clk 0:00:40.8]} 11... Qa6 {[%clk 0:00:32.8]} 12. Bc5 {[%clk 0:00:33.8]} 12... Nd7 {[%clk 0:00:29.8]} 13. Bd4 {[%clk 0:00:23.7]} 13... Qa3+ {[%clk 0:00:19.1]} 14. Kb1 {[%clk 0:00:22.4]} 14... Qb2# {[%clk 0:00:18.1]} 0-1

[Event "Live Chess"]
[Site "Chess.com"]
[Date "2010.12.14"]
[Round "-"]
[White "hipposcottimus"]
[Black "Habitoc"]
[Result "0-1"]
[CurrentPosition "2k2bnr/ppp1p1p1/5p2/5b1p/3Q4/2NB4/P1P2PPP/q3K2R w KQ -"]
[Timezone "UTC"]
[ECO "B01"]
[ECOUrl "https://www.chess.com/openings/Scandinavian-Defense-Mieses-Kotrc-Gubinsky-Melts-Defense-4.d4"]
[UTCDate "2010.12.14"]
[UTCTime "08:29:42"]
[WhiteElo "1662"]
[BlackElo "1732"]
[TimeControl "60"]
[Termination "Habitoc won on time"]
[StartTime "08:29:42"]
[EndDate "2010.12.14"]
[EndTime "08:31:10"]
[Link "https://www.chess.com/game/live/77144547"]

1. e4 {[%clk 0:01:00]} 1... d5 {[%clk 0:01:00]} 2. exd5 {[%clk 0:00:58.7]} 2... Qxd5 {[%clk 0:00:59.7]} 3. Nc3 {[%clk 0:00:58.4]} 3... Qd6 {[%clk 0:00:59.2]} 4. d4 {[%clk 0:00:54.2]} 4... h5 {[%clk 0:00:57.5]} 5. Nf3 {[%clk 0:00:45.7]} 5... f6 {[%clk 0:00:56.9]} 6. Ne2 {[%clk 0:00:42.4]} 6... Bf5 {[%clk 0:00:56.3]} 7. Bf4 {[%clk 0:00:39.9]} 7... Qb6 {[%clk 0:00:53.3]} 8. Qc1 {[%clk 0:00:22.7]} 8... Nc6 {[%clk 0:00:50.8]} 9. Nc3 {[%clk 0:00:19.5]} 9... O-O-O {[%clk 0:00:49.1]} 10. Na4 {[%clk 0:00:17.7]} 10... Qb4+ {[%clk 0:00:47.2]} 11. Nc3 {[%clk 0:00:14.5]} 11... Nxd4 {[%clk 0:00:46.5]} 12. Nxd4 {[%clk 0:00:12.8]} 12... Rxd4 {[%clk 0:00:44.7]} 13. Bd3 {[%clk 0:00:07.2]} 13... Rxf4 {[%clk 0:00:43.4]} 14. Qxf4 {[%clk 0:00:04.3]} 14... Qxb2 {[%clk 0:00:40.3]} 15. Qd4 {[%clk 0:00:01.2]} 15... Qxa1+ {[%clk 0:00:38.8]} 0-1

[Event "Live Chess"]
[Site "Chess.com"]
[Date "2010.12.14"]
[Round "-"]
[White "Habitoc"]
[Black "hipposcottimus"]
[Result "0-1"]
[CurrentPosition "5r1k/QpN3pp/3P4/8/1PB4P/p1n1RR1N/P1q3PB/1bK5 w - -"]
[Timezone "UTC"]
[ECO "A00"]
[ECOUrl "https://www.chess.com/openings/Kadas-Opening-1...d5-2.d4"]
[UTCDate "2010.12.14"]
[UTCTime "08:27:11"]
[WhiteElo "1725"]
[BlackElo "1669"]
[TimeControl "60"]
[Termination "hipposcottimus won by checkmate"]
[StartTime "08:27:11"]
[EndDate "2010.12.14"]
[EndTime "08:29:24"]
[Link "https://www.chess.com/game/live/77144067"]

1. d4 {[%clk 0:01:00]} 1... d5 {[%clk 0:01:00]} 2. h4 {[%clk 0:00:59.5]} 2... c6 {[%clk 0:00:59.5]} 3. Nc3 {[%clk 0:00:58.8]} 3... e6 {[%clk 0:00:58.7]} 4. Bf4 {[%clk 0:00:58.4]} 4... f5 {[%clk 0:00:58.3]} 5. Bh2 {[%clk 0:00:58]} 5... Nf6 {[%clk 0:00:57]} 6. f3 {[%clk 0:00:57.5]} 6... Bb4 {[%clk 0:00:54.4]} 7. Qd3 {[%clk 0:00:56.5]} 7... Na6 {[%clk 0:00:51.3]} 8. O-O-O {[%clk 0:00:55.3]} 8... c5 {[%clk 0:00:48.6]} 9. dxc5 {[%clk 0:00:53.2]} 9... Nxc5 {[%clk 0:00:45]} 10. Qb5+ {[%clk 0:00:52.8]} 10... Nfd7 {[%clk 0:00:39.8]} 11. Qxb4 {[%clk 0:00:51.9]} 11... O-O {[%clk 0:00:39.5]} 12. e4 {[%clk 0:00:50.8]} 12... a5 {[%clk 0:00:38.6]} 13. Qd4 {[%clk 0:00:48.5]} 13... a4 {[%clk 0:00:37.3]} 14. exd5 {[%clk 0:00:47.2]} 14... a3 {[%clk 0:00:35.5]} 15. b4 {[%clk 0:00:44.7]} 15... e5 {[%clk 0:00:30.7]} 16. Qd2 {[%clk 0:00:40.5]} 16... Na4 {[%clk 0:00:27.5]} 17. Nb5 {[%clk 0:00:37.5]} 17... Ndb6 {[%clk 0:00:23.5]} 18. d6 {[%clk 0:00:36.7]} 18... Nc4 {[%clk 0:00:22.3]} 19. Qd5+ {[%clk 0:00:35]} 19... Kh8 {[%clk 0:00:19]} 20. Bxc4 {[%clk 0:00:32.3]} 20... Qf6 {[%clk 0:00:17.9]} 21. Nc7 {[%clk 0:00:30.6]} 21... Nc3 {[%clk 0:00:16.5]} 22. Qd3 {[%clk 0:00:22.9]} 22... e4 {[%clk 0:00:12.2]} 23. fxe4 {[%clk 0:00:20.3]} 23... fxe4 {[%clk 0:00:11.5]} 24. Qe3 {[%clk 0:00:18.3]} 24... Ra7 {[%clk 0:00:10.2]} 25. Rf1 {[%clk 0:00:15.5]} 25... Bf5 {[%clk 0:00:09]} 26. Nh3 {[%clk 0:00:12.5]} 26... Qg6 {[%clk 0:00:07.4]} 27. Qxa7 {[%clk 0:00:10.7]} 27... e3 {[%clk 0:00:03.9]} 28. Rf3 {[%clk 0:00:07.6]} 28... Bxc2 {[%clk 0:00:02.4]} 29. Re1 {[%clk 0:00:04.1]} 29... Bb1 {[%clk 0:00:01.9]} 30. Rexe3 {[%clk 0:00:02.5]} 30... Qc2# {[%clk 0:00:00.3]} 0-1

[Event "Live Chess"]
[Site "Chess.com"]
[Date "2010.12.14"]
[Round "-"]
[White "AdiLevin"]
[Black "hipposcottimus"]
[Result "1-0"]
[CurrentPosition "8/6kp/3R2p1/8/8/1P5P/1PP3P1/6K1 b - -"]
[Timezone "UTC"]
[ECO "C34"]
[ECOUrl "https://www.chess.com/openings/Kings-Gambit-Accepted-Fischer-Defense-4.Bc4"]
[UTCDate "2010.12.14"]
[UTCTime "08:24:04"]
[WhiteElo "1778"]
[BlackElo "1658"]
[TimeControl "60"]
[Termination "AdiLevin won on time"]
[StartTime "08:24:04"]
[EndDate "2010.12.14"]
[EndTime "08:26:20"]
[Link "https://www.chess.com/game/live/77143477"]

1. e4 {[%clk 0:01:00]} 1... e5 {[%clk 0:01:00]} 2. f4 {[%clk 0:00:59.4]} 2... exf4 {[%clk 0:00:59.8]} 3. Nf3 {[%clk 0:00:58.9]} 3... d6 {[%clk 0:00:59.6]} 4. Bc4 {[%clk 0:00:58.3]} 4... Nd7 {[%clk 0:00:59.4]} 5. O-O {[%clk 0:00:57.5]} 5... Ne5 {[%clk 0:00:58.7]} 6. Bb3 {[%clk 0:00:54.4]} 6... Nf6 {[%clk 0:00:56.4]} 7. d4 {[%clk 0:00:53.1]} 7... Nc6 {[%clk 0:00:48.4]} 8. Nc3 {[%clk 0:00:51.3]} 8... Be7 {[%clk 0:00:46.7]} 9. Bxf4 {[%clk 0:00:50.7]} 9... O-O {[%clk 0:00:45.6]} 10. d5 {[%clk 0:00:49.8]} 10... Na5 {[%clk 0:00:45.3]} 11. Qd3 {[%clk 0:00:45.2]} 11... Nxb3 {[%clk 0:00:43.5]} 12. axb3 {[%clk 0:00:45.2]} 12... b6 {[%clk 0:00:38.6]} 13. e5 {[%clk 0:00:43]} 13... dxe5 {[%clk 0:00:35.7]} 14. Bxe5 {[%clk 0:00:42.1]} 14... Ng4 {[%clk 0:00:34.1]} 15. h3 {[%clk 0:00:37.3]} 15... Nxe5 {[%clk 0:00:31.4]} 16. Nxe5 {[%clk 0:00:37.3]} 16... Bf6 {[%clk 0:00:31.1]} 17. Nf3 {[%clk 0:00:30.2]} 17... Bb7 {[%clk 0:00:26.6]} 18. Rad1 {[%clk 0:00:26.3]} 18... b5 {[%clk 0:00:24.5]} 19. Nxb5 {[%clk 0:00:24.5]} 19... a6 {[%clk 0:00:22.9]} 20. Nc3 {[%clk 0:00:20.9]} 20... g6 {[%clk 0:00:19.2]} 21. Nd4 {[%clk 0:00:17.1]} 21... Bg7 {[%clk 0:00:18.8]} 22. Ne6 {[%clk 0:00:14.7]} 22... Qxd5 {[%clk 0:00:13.5]} 23. Qxd5 {[%clk 0:00:12.6]} 23... Bxd5 {[%clk 0:00:13.2]} 24. Nxf8 {[%clk 0:00:11.3]} 24... Rxf8 {[%clk 0:00:12.9]} 25. Nxd5 {[%clk 0:00:10.1]} 25... f6 {[%clk 0:00:10.8]} 26. Nxc7 {[%clk 0:00:08.4]} 26... Rf7 {[%clk 0:00:10.4]} 27. Ne6 {[%clk 0:00:07.3]} 27... Bf8 {[%clk 0:00:09]} 28. Nxf8 {[%clk 0:00:04.7]} 28... Rxf8 {[%clk 0:00:08.6]} 29. Rd6 {[%clk 0:00:03.7]} 29... Kg7 {[%clk 0:00:05.8]} 30. Rxa6 {[%clk 0:00:02.1]} 30... Kh6 {[%clk 0:00:05.3]} 31. Raxf6 {[%clk 0:00:00.4]} 31... Rxf6 {[%clk 0:00:03.8]} 32. Rxf6 {[%clk 0:00:00.4]} 32... Kg7 {[%clk 0:00:00.3]} 33. Rd6 {[%clk 0:00:00.4]} 1-0

[Event "Live Chess"]
[Site "Chess.com"]
[Date "2010.12.14"]
[Round "-"]
[White "hipposcottimus"]
[Black "AdiLevin"]
[Result "0-1"]
[CurrentPosition "r4rk1/1p3pp1/p3p3/1b1p1P1p/6n1/2P2R1P/P1P3Pq/1RB4K w - -"]
[Timezone "UTC"]
[ECO "C02"]
[ECOUrl "https://www.chess.com/openings/French-Defense-Advance-Variation-3...c5"]
[UTCDate "2010.12.14"]
[UTCTime "08:22:10"]
[WhiteElo "1664"]
[BlackElo "1772"]
[TimeControl "60"]
[Termination "AdiLevin won by checkmate"]
[StartTime "08:22:10"]
[EndDate "2010.12.14"]
[EndTime "08:23:38"]
[Link "https://www.chess.com/game/live/77143142"]

1. e4 {[%clk 0:01:00]} 1... e6 {[%clk 0:01:00]} 2. d4 {[%clk 0:00:58.7]} 2... d5 {[%clk 0:01:00]} 3. e5 {[%clk 0:00:58.5]} 3... c5 {[%clk 0:00:58.9]} 4. f4 {[%clk 0:00:57.8]} 4... Qb6 {[%clk 0:00:58.1]} 5. Nf3 {[%clk 0:00:57.1]} 5... cxd4 {[%clk 0:00:56.7]} 6. Nxd4 {[%clk 0:00:55.4]} 6... Nc6 {[%clk 0:00:55.8]} 7. Bb5 {[%clk 0:00:49.6]} 7... Bd7 {[%clk 0:00:53.7]} 8. Bxc6 {[%clk 0:00:48.6]} 8... Bxc6 {[%clk 0:00:52.2]} 9. O-O {[%clk 0:00:48.4]} 9... Bc5 {[%clk 0:00:48.8]} 10. Nc3 {[%clk 0:00:47.3]} 10... Bxd4+ {[%clk 0:00:44.7]} 11. Kh1 {[%clk 0:00:45.9]} 11... Bxc3 {[%clk 0:00:43.1]} 12. bxc3 {[%clk 0:00:45.6]} 12... Ne7 {[%clk 0:00:41.8]} 13. Bb2 {[%clk 0:00:45.1]} 13... Nf5 {[%clk 0:00:40.4]} 14. Rb1 {[%clk 0:00:44.5]} 14... Ne3 {[%clk 0:00:38.2]} 15. Ba3 {[%clk 0:00:44.1]} 15... Qc7 {[%clk 0:00:36.3]} 16. Qe2 {[%clk 0:00:42.6]} 16... Nc4 {[%clk 0:00:34.4]} 17. Bb2 {[%clk 0:00:41.1]} 17... a6 {[%clk 0:00:32.5]} 18. Bc1 {[%clk 0:00:40.1]} 18... Bb5 {[%clk 0:00:31.5]} 19. Qf3 {[%clk 0:00:37.4]} 19... O-O {[%clk 0:00:27.7]} 20. f5 {[%clk 0:00:36.6]} 20... Nxe5 {[%clk 0:00:25.2]} 21. Qf2 {[%clk 0:00:36.1]} 21... Ng4 {[%clk 0:00:22.8]} 22. Qg3 {[%clk 0:00:30.9]} 22... h5 {[%clk 0:00:21]} 23. h3 {[%clk 0:00:29.8]} 23... Qxg3 {[%clk 0:00:19.8]} 24. Rf3 {[%clk 0:00:27.6]} 24... Qh2# {[%clk 0:00:16.6]} 0-1

[Event "Live Chess"]
[Site "Chess.com"]
[Date "2010.12.14"]
[Round "-"]
[White "AdiLevin"]
[Black "hipposcottimus"]
[Result "1-0"]
[CurrentPosition "8/p7/p5p1/8/8/1P4kP/PB1P2P1/2K1RR2 b - -"]
[Timezone "UTC"]
[ECO "C31"]
[ECOUrl "https://www.chess.com/openings/Kings-Gambit-Declined-Falkbeer-Blackburne-Attack"]
[UTCDate "2010.12.14"]
[UTCTime "08:19:50"]
[WhiteElo "1766"]
[BlackElo "1670"]
[TimeControl "60"]
[Termination "AdiLevin won on time"]
[StartTime "08:19:50"]
[EndDate "2010.12.14"]
[EndTime "08:21:53"]
[Link "https://www.chess.com/game/live/77142702"]

1. e4 {[%clk 0:01:00]} 1... e5 {[%clk 0:01:00]} 2. f4 {[%clk 0:00:59.2]} 2... d5 {[%clk 0:00:58.5]} 3. Nf3 {[%clk 0:00:59.2]} 3... dxe4 {[%clk 0:00:56]} 4. Nxe5 {[%clk 0:00:58.3]} 4... f6 {[%clk 0:00:55]} 5. Qh5+ {[%clk 0:00:53.5]} 5... g6 {[%clk 0:00:34.5]} 6. Nxg6 {[%clk 0:00:52]} 6... Kd7 {[%clk 0:00:34.2]} 7. Nxh8 {[%clk 0:00:45.1]} 7... c6 {[%clk 0:00:33.3]} 8. Qf7+ {[%clk 0:00:43.5]} 8... Be7 {[%clk 0:00:30.6]} 9. Bc4 {[%clk 0:00:36.7]} 9... Kc7 {[%clk 0:00:30.1]} 10. Nc3 {[%clk 0:00:33.5]} 10... Bd7 {[%clk 0:00:17.4]} 11. Qxg8 {[%clk 0:00:31.7]} 11... Na6 {[%clk 0:00:14.6]} 12. Qxd8+ {[%clk 0:00:29.3]} 12... Rxd8 {[%clk 0:00:14.3]} 13. Bxa6 {[%clk 0:00:29.3]} 13... Bc8 {[%clk 0:00:14]} 14. Nf7 {[%clk 0:00:28.1]} 14... Kb8 {[%clk 0:00:13.7]} 15. Nxd8 {[%clk 0:00:26.6]} 15... bxa6 {[%clk 0:00:13.5]} 16. Nxc6+ {[%clk 0:00:24.8]} 16... Kc7 {[%clk 0:00:11.9]} 17. Nxe7 {[%clk 0:00:24.8]} 17... Bg4 {[%clk 0:00:09.7]} 18. Ncd5+ {[%clk 0:00:24.8]} 18... Kd6 {[%clk 0:00:08.8]} 19. h3 {[%clk 0:00:24.1]} 19... Bf5 {[%clk 0:00:07]} 20. c4 {[%clk 0:00:22.2]} 20... Bg6 {[%clk 0:00:05.6]} 21. Nxg6 {[%clk 0:00:20.2]} 21... hxg6 {[%clk 0:00:05.3]} 22. Nxf6 {[%clk 0:00:18]} 22... Kc5 {[%clk 0:00:03.5]} 23. Nxe4+ {[%clk 0:00:15.7]} 23... Kxc4 {[%clk 0:00:02.9]} 24. b3+ {[%clk 0:00:15.7]} 24... Kd4 {[%clk 0:00:02.4]} 25. Bb2+ {[%clk 0:00:13.7]} 25... Kxe4 {[%clk 0:00:01.1]} 26. O-O-O {[%clk 0:00:13]} 26... Kxf4 {[%clk 0:00:00.5]} 27. Rhf1+ {[%clk 0:00:12.2]} 27... Kg3 {[%clk 0:00:00.2]} 28. Rde1 {[%clk 0:00:11.3]} 1-0

[Event "Live Chess"]
[Site "Chess.com"]
[Date "2010.12.14"]
[Round "-"]
[White "valerio167"]
[Black "hipposcottimus"]
[Result "1-0"]
[CurrentPosition "3R4/p1k5/3Q4/1pp5/8/1P1B1K2/P1P5/8 b - -"]
[Timezone "UTC"]
[ECO "C22"]
[ECOUrl "https://www.chess.com/openings/Center-Game-Accepted-Paulsen-Attack"]
[UTCDate "2010.12.14"]
[UTCTime "07:17:53"]
[WhiteElo "1512"]
[BlackElo "1445"]
[TimeControl "600"]
[Termination "valerio167 won on time"]
[StartTime "07:17:53"]
[EndDate "2010.12.14"]
[EndTime "07:29:49"]
[Link "https://www.chess.com/game/live/77130479"]

1. e4 {[%clk 0:10:00]} 1... e5 {[%clk 0:10:00]} 2. d4 {[%clk 0:09:57.5]} 2... exd4 {[%clk 0:09:56]} 3. Qxd4 {[%clk 0:09:56.5]} 3... Nc6 {[%clk 0:09:55.1]} 4. Qe3 {[%clk 0:09:56]} 4... d6 {[%clk 0:09:53.9]} 5. f4 {[%clk 0:09:50]} 5... Nf6 {[%clk 0:09:36.4]} 6. e5 {[%clk 0:09:42]} 6... Ng4 {[%clk 0:09:31]} 7. Qe4 {[%clk 0:09:39.3]} 7... dxe5 {[%clk 0:09:18.7]} 8. fxe5 {[%clk 0:09:17.1]} 8... Qd1+ {[%clk 0:09:09.8]} 9. Kxd1 {[%clk 0:09:10]} 9... Nf2+ {[%clk 0:09:08.9]} 10. Ke2 {[%clk 0:09:00.8]} 10... Nxe4 {[%clk 0:09:08.4]} 11. Nf3 {[%clk 0:08:59.4]} 11... Bg4 {[%clk 0:09:04.4]} 12. Ke3 {[%clk 0:08:45.9]} 12... Bxf3 {[%clk 0:08:59.1]} 13. gxf3 {[%clk 0:08:39]} 13... f5 {[%clk 0:08:36.4]} 14. fxe4 {[%clk 0:08:37.3]} 14... Nxe5 {[%clk 0:08:31.8]} 15. exf5 {[%clk 0:08:26.9]} 15... O-O-O {[%clk 0:08:28.8]} 16. Nc3 {[%clk 0:08:15]} 16... Bc5+ {[%clk 0:08:12.3]} 17. Kf4 {[%clk 0:08:05.4]} 17... Nf7 {[%clk 0:07:53.9]} 18. Bd3 {[%clk 0:07:53.3]} 18... g5+ {[%clk 0:07:49.5]} 19. Kg4 {[%clk 0:07:49.9]} 19... h5+ {[%clk 0:07:46.4]} 20. Kg3 {[%clk 0:07:41.3]} 20... h4+ {[%clk 0:07:31.5]} 21. Kg4 {[%clk 0:07:39.9]} 21... Rd4+ {[%clk 0:07:28.1]} 22. Ne4 {[%clk 0:07:15.4]} 22... h3 {[%clk 0:07:20.5]} 23. Bxg5 {[%clk 0:07:03.7]} 23... Rg8 {[%clk 0:07:17.2]} 24. Kh5 {[%clk 0:06:53.4]} 24... Nxg5 {[%clk 0:06:20.9]} 25. Nxg5 {[%clk 0:06:45.1]} 25... Rg4 {[%clk 0:06:16.3]} 26. Kxg4 {[%clk 0:06:42.7]} 26... Be7 {[%clk 0:06:08.6]} 27. Kxh3 {[%clk 0:06:35]} 27... Rxg5 {[%clk 0:06:05.7]} 28. Rag1 {[%clk 0:06:22.1]} 28... Rh5+ {[%clk 0:06:02.6]} 29. Kg4 {[%clk 0:06:17]} 29... Rg5+ {[%clk 0:06:01]} 30. Kf3 {[%clk 0:06:15.7]} 30... Rh5 {[%clk 0:05:56.8]} 31. Rg8+ {[%clk 0:06:06.7]} 31... Kd7 {[%clk 0:05:52.4]} 32. Rg7 {[%clk 0:05:53.9]} 32... Kd6 {[%clk 0:05:48.1]} 33. Rf7 {[%clk 0:05:35]} 33... Bg5 {[%clk 0:05:35.5]} 34. Rf8 {[%clk 0:05:17.2]} 34... c5 {[%clk 0:05:29.1]} 35. f6 {[%clk 0:05:04.1]} 35... Ke6 {[%clk 0:05:23.8]} 36. Re1+ {[%clk 0:04:58.9]} 36... Kd5 {[%clk 0:05:11.6]} 37. b3 {[%clk 0:04:51.8]} 37... Bh6 {[%clk 0:05:10.7]} 38. Rd8+ {[%clk 0:04:43.8]} 38... Kc6 {[%clk 0:05:04.1]} 39. f7 {[%clk 0:04:35.7]} 39... Rxh2 {[%clk 0:04:45.3]} 40. Re6+ {[%clk 0:04:24.5]} 40... Kc7 {[%clk 0:04:40.1]} 41. Rxh6 {[%clk 0:04:20.1]} 41... Rxh6 {[%clk 0:04:29.5]} 42. f8=Q {[%clk 0:04:16.6]} 42... Rf6+ {[%clk 0:04:28.7]} 43. Qxf6 {[%clk 0:04:13.5]} 43... b5 {[%clk 0:04:16.2]} 44. Qd6+ {[%clk 0:04:10.3]} 1-0